[Event "Titled Tuesday Blitz March 29 Early 2022"]
[White "Hebden, Mark L"]
[Black "Namitbir Singh Walia"]
[WhiteFideId "400084"]
[BlackFideId "35071068"]
[WhiteElo "2457"]
[BlackElo "1565"]
[Result "1-0"]
[Round "01"]
[TimeControl "180+1"]
[Date "2022.03.30"]
[WhiteClock "0:00:54"]
[BlackClock "0:01:10"]

1. d4 {[%clk 0:02:57]}  Nf6 {[%clk 0:02:57]} 2. Nf3 {[%clk 0:02:57]}  d5 {[%clk 0:02:56]} 3. c4 {[%clk 0:02:56]}  c6 {[%clk 0:02:56]} 4. e3 {[%clk 0:02:55]}  e6 {[%clk 0:02:54]} 5. Bd3 {[%clk 0:02:53]}  Nbd7 {[%clk 0:02:55]} 6. b3 {[%clk 0:02:52]}  Bd6 {[%clk 0:02:50]} 7. Bb2 {[%clk 0:02:51]}  O-O {[%clk 0:02:51]} 8. O-O {[%clk 0:02:51]}  Qc7 {[%clk 0:02:44]} 9. Nc3 {[%clk 0:02:45]}  e5 {[%clk 0:02:41]} 10. cxd5 {[%clk 0:02:41]}  Nxd5 {[%clk 0:02:38]} 11. Nxd5 {[%clk 0:02:34]}  cxd5 {[%clk 0:02:38]} 12. Rc1 {[%clk 0:02:28]}  Qb8 {[%clk 0:02:37]} 13. dxe5 {[%clk 0:02:26]}  Nxe5 {[%clk 0:02:38]} 14. Nxe5 {[%clk 0:02:21]}  Bxe5 {[%clk 0:02:38]} 15. Bxh7+ {[%clk 0:01:53]}  Kxh7 {[%clk 0:01:44]} 16. Qh5+ {[%clk 0:01:52]}  Kg8 {[%clk 0:01:41]} 17. Bxe5 {[%clk 0:01:49]}  Bg4 {[%clk 0:01:42]} 18. Qg5 {[%clk 0:01:39]}  f6 {[%clk 0:01:41]} 19. Bxf6 {[%clk 0:01:28]}  Rxf6 {[%clk 0:01:42]} 20. Qxg4 {[%clk 0:01:27]}  Qe8 {[%clk 0:01:37]} 21. Rfd1 {[%clk 0:01:16]}  Rd8 {[%clk 0:01:34]} 22. Rc7 {[%clk 0:01:13]}  Rf7 {[%clk 0:01:35]} 23. Rxf7 {[%clk 0:01:08]}  Qxf7 {[%clk 0:01:36]} 24. Qd4 {[%clk 0:01:08]}  b6 {[%clk 0:01:29]} 25. e4 {[%clk 0:01:08]}  Qh5 {[%clk 0:01:24]} 26. exd5 {[%clk 0:01:05]}  Rd6 {[%clk 0:01:25]} 27. h3 {[%clk 0:01:01]}  Rg6 {[%clk 0:01:23]} 28. d6 {[%clk 0:00:56]}  Qxh3 {[%clk 0:01:17]} 29. Qd5+ {[%clk 0:00:55]}  Kh7 {[%clk 0:01:17]} 30. d7 {[%clk 0:00:54]}  Qh4 {[%clk 0:01:10]} 1-0


[Site "https://www.chess.com"]

[Event "Titled Tuesday Blitz March 29 Early 2022"]
[White "Hua, Lefong"]
[Black "Borodavkin, Anatoly"]
[WhiteFideId "2602253"]
[BlackFideId "14150662"]
[WhiteElo "2560"]
[BlackElo "1845"]
[Result "1-0"]
[Round "01"]
[TimeControl "180+1"]
[Date "2022.03.30"]
[WhiteClock "0:00:44"]
[BlackClock "0:00:02"]

1. d4 {[%clk 0:03:00]}  d5 {[%clk 0:02:59]} 2. c4 {[%clk 0:03:00]}  Nc6 {[%clk 0:02:59]} 3. cxd5 {[%clk 0:03:00]}  Qxd5 {[%clk 0:02:59]} 4. e3 {[%clk 0:03:00]}  e5 {[%clk 0:02:58]} 5. Nc3 {[%clk 0:02:59]}  Bb4 {[%clk 0:02:57]} 6. Bd2 {[%clk 0:02:59]}  Bxc3 {[%clk 0:02:57]} 7. Bxc3 {[%clk 0:02:59]}  exd4 {[%clk 0:02:53]} 8. Ne2 {[%clk 0:02:58]}  Bg4 {[%clk 0:02:45]} 9. f3 {[%clk 0:02:52]}  O-O-O {[%clk 0:02:41]} 10. Nxd4 {[%clk 0:02:49]}  Be6 {[%clk 0:02:24]} 11. Qa4 {[%clk 0:02:30]}  Nge7 {[%clk 0:01:14]} 12. e4 {[%clk 0:02:18]}  Qc5 {[%clk 0:00:56]} 13. Rd1 {[%clk 0:01:43]}  Rd7 {[%clk 0:00:46]} 14. Qb5 {[%clk 0:01:30]}  Qxb5 {[%clk 0:00:29]} 15. Nxb5 {[%clk 0:01:30]}  Rxd1+ {[%clk 0:00:25]} 16. Kxd1 {[%clk 0:01:31]}  Bxa2 {[%clk 0:00:22]} 17. Bxg7 {[%clk 0:01:28]}  Rd8+ {[%clk 0:00:22]} 18. Kc1 {[%clk 0:01:21]}  Bb3 {[%clk 0:00:20]} 19. Nc3 {[%clk 0:01:20]}  Nb4 {[%clk 0:00:17]} 20. Be2 {[%clk 0:01:20]}  Rg8 {[%clk 0:00:16]} 21. Bf6 {[%clk 0:01:17]}  Nec6 {[%clk 0:00:16]} 22. g4 {[%clk 0:01:13]}  Re8 {[%clk 0:00:15]} 23. g5 {[%clk 0:01:09]}  Ne5 {[%clk 0:00:15]} 24. f4 {[%clk 0:01:07]}  Ned3+ {[%clk 0:00:15]} 25. Kd2 {[%clk 0:01:05]}  Nxf4 {[%clk 0:00:14]} 26. Bg4+ {[%clk 0:01:04]}  Kb8 {[%clk 0:00:14]} 27. Rf1 {[%clk 0:01:04]}  Ne6 {[%clk 0:00:14]} 28. Bf5 {[%clk 0:01:03]}  Nc6 {[%clk 0:00:10]} 29. Bxh7 {[%clk 0:01:01]}  Ncd4 {[%clk 0:00:09]} 30. h4 {[%clk 0:00:59]}  Bc4 {[%clk 0:00:09]} 31. Rf2 {[%clk 0:00:58]}  Nf8 {[%clk 0:00:06]} 32. Bf5 {[%clk 0:00:56]}  Nxf5 {[%clk 0:00:07]} 33. exf5 {[%clk 0:00:57]}  Nh7 {[%clk 0:00:06]} 34. Bd4 {[%clk 0:00:46]}  Rd8 {[%clk 0:00:06]} 35. Ke3 {[%clk 0:00:46]}  b6 {[%clk 0:00:06]} 36. g6 {[%clk 0:00:45]}  fxg6 {[%clk 0:00:04]} 37. fxg6 {[%clk 0:00:46]}  Nf8 {[%clk 0:00:03]} 38. h5 {[%clk 0:00:45]}  Ne6 {[%clk 0:00:03]} 39. Bf6 {[%clk 0:00:44]}  Re8 {[%clk 0:00:02]} 40. Kd2 {[%clk 0:00:43]}  c5 {[%clk 0:00:02]} 41. h6 {[%clk 0:00:44]} 1-0


[Site "https://www.chess.com"]

[Event "Titled Tuesday Blitz March 29 Early 2022"]
[White "Iljin, Timofey"]
[Black "Pakleza, Zbigniew"]
[WhiteFideId "14110180"]
[BlackFideId "1119290"]
[WhiteElo "2396"]
[BlackElo "2467"]
[Result "0-1"]
[Round "01"]
[TimeControl "180+1"]
[Date "2022.03.30"]
[WhiteClock "0:00:04"]
[BlackClock "0:00:17"]

1. e4 {[%clk 0:02:57]}  d6 {[%clk 0:02:55]} 2. f4 {[%clk 0:02:56]}  Nf6 {[%clk 0:02:55]} 3. Nc3 {[%clk 0:02:55]}  d5 {[%clk 0:02:55]} 4. e5 {[%clk 0:02:55]}  d4 {[%clk 0:02:55]} 5. exf6 {[%clk 0:02:50]}  dxc3 {[%clk 0:02:56]} 6. dxc3 {[%clk 0:02:50]}  Qxd1+ {[%clk 0:02:54]} 7. Kxd1 {[%clk 0:02:51]}  gxf6 {[%clk 0:02:38]} 8. Nf3 {[%clk 0:02:48]}  Nc6 {[%clk 0:02:32]} 9. Be3 {[%clk 0:02:47]}  Bg4 {[%clk 0:02:26]} 10. Be2 {[%clk 0:02:46]}  O-O-O+ {[%clk 0:02:26]} 11. Ke1 {[%clk 0:02:46]}  Rg8 {[%clk 0:02:21]} 12. Kf2 {[%clk 0:02:45]}  e6 {[%clk 0:02:17]} 13. Rad1 {[%clk 0:02:43]}  Bd6 {[%clk 0:02:16]} 14. Rd2 {[%clk 0:02:35]}  Ne7 {[%clk 0:02:04]} 15. h3 {[%clk 0:02:12]}  Bf5 {[%clk 0:01:48]} 16. Rhd1 {[%clk 0:02:06]}  Be4 {[%clk 0:01:38]} 17. g4 {[%clk 0:01:54]}  Nd5 {[%clk 0:01:25]} 18. Rd4 {[%clk 0:01:19]}  Bxf3 {[%clk 0:01:10]} 19. Bxf3 {[%clk 0:00:59]}  Nxe3 {[%clk 0:01:09]} 20. Kxe3 {[%clk 0:00:59]}  Bc5 {[%clk 0:01:09]} 21. b4 {[%clk 0:00:52]}  Bxd4+ {[%clk 0:01:07]} 22. cxd4 {[%clk 0:00:53]}  c6 {[%clk 0:01:02]} 23. c3 {[%clk 0:00:50]}  h6 {[%clk 0:01:01]} 24. a4 {[%clk 0:00:48]}  Kc7 {[%clk 0:01:01]} 25. Kf2 {[%clk 0:00:38]}  a5 {[%clk 0:00:58]} 26. Kg3 {[%clk 0:00:31]}  axb4 {[%clk 0:00:54]} 27. cxb4 {[%clk 0:00:31]}  Rd6 {[%clk 0:00:50]} 28. Kh4 {[%clk 0:00:29]}  Rgd8 {[%clk 0:00:49]} 29. d5 {[%clk 0:00:29]}  cxd5 {[%clk 0:00:45]} 30. Kh5 {[%clk 0:00:30]}  e5 {[%clk 0:00:45]} 31. f5 {[%clk 0:00:27]}  e4 {[%clk 0:00:45]} 32. Bg2 {[%clk 0:00:26]}  Re8 {[%clk 0:00:43]} 33. Kxh6 {[%clk 0:00:26]}  d4 {[%clk 0:00:40]} 34. Kg7 {[%clk 0:00:23]}  e3 {[%clk 0:00:34]} 35. Kxf7 {[%clk 0:00:22]}  Re5 {[%clk 0:00:34]} 36. Rc1+ {[%clk 0:00:19]}  Kb8 {[%clk 0:00:33]} 37. h4 {[%clk 0:00:07]}  e2 {[%clk 0:00:32]} 38. g5 {[%clk 0:00:05]}  fxg5 {[%clk 0:00:33]} 39. hxg5 {[%clk 0:00:05]}  Rxf5+ {[%clk 0:00:28]} 40. Ke7 {[%clk 0:00:05]}  Rc6 {[%clk 0:00:19]} 41. Bxc6 {[%clk 0:00:04]}  Rf1 {[%clk 0:00:19]} 42. Rc2 {[%clk 0:00:02]}  e1=Q+ {[%clk 0:00:19]} 43. Kd6 {[%clk 0:00:02]}  Qg3+ {[%clk 0:00:18]} 44. Kc5 {[%clk 0:00:03]}  Rf5+ {[%clk 0:00:17]} 45. Kb6 {[%clk 0:00:04]}  Qc7# {[%clk 0:00:17]} 0-1


[Site "https://www.chess.com"]

[Event "Titled Tuesday Blitz March 29 Early 2022"]
[White "Iskusnyh, Sergei"]
[Black "Avalos Parra, Joao"]
[WhiteFideId "4120027"]
[BlackFideId "3402541"]
[WhiteElo "2492"]
[BlackElo "2173"]
[Result "1-0"]
[Round "01"]
[TimeControl "180+1"]
[Date "2022.03.30"]
[WhiteClock "0:01:01"]
[BlackClock "0:00:19"]

1. d4 {[%clk 0:02:56]}  Nf6 {[%clk 0:02:58]} 2. c4 {[%clk 0:02:56]}  c6 {[%clk 0:02:56]} 3. Nf3 {[%clk 0:02:54]}  d5 {[%clk 0:02:56]} 4. Qb3 {[%clk 0:02:53]}  dxc4 {[%clk 0:02:54]} 5. Qxc4 {[%clk 0:02:54]}  Bf5 {[%clk 0:02:48]} 6. g3 {[%clk 0:02:52]}  e6 {[%clk 0:02:48]} 7. Bg2 {[%clk 0:02:51]}  Be7 {[%clk 0:02:49]} 8. O-O {[%clk 0:02:50]}  h6 {[%clk 0:02:49]} 9. Nc3 {[%clk 0:02:50]}  O-O {[%clk 0:02:49]} 10. e3 {[%clk 0:02:49]}  Nbd7 {[%clk 0:02:48]} 11. Qe2 {[%clk 0:02:44]}  Ne4 {[%clk 0:02:41]} 12. Nd2 {[%clk 0:02:37]}  Nxc3 {[%clk 0:02:33]} 13. bxc3 {[%clk 0:02:37]}  e5 {[%clk 0:02:31]} 14. e4 {[%clk 0:02:35]}  Bg6 {[%clk 0:02:31]} 15. Nc4 {[%clk 0:02:16]}  Qc7 {[%clk 0:02:23]} 16. f4 {[%clk 0:02:09]}  exd4 {[%clk 0:02:08]} 17. cxd4 {[%clk 0:02:10]}  Nb6 {[%clk 0:02:02]} 18. Ne5 {[%clk 0:02:09]}  Bh7 {[%clk 0:02:00]} 19. f5 {[%clk 0:02:06]}  Bf6 {[%clk 0:01:56]} 20. Bb2 {[%clk 0:02:03]}  Rad8 {[%clk 0:01:36]} 21. Rad1 {[%clk 0:01:59]}  Na4 {[%clk 0:01:33]} 22. Ba1 {[%clk 0:01:58]}  c5 {[%clk 0:01:27]} 23. Qc2 {[%clk 0:01:36]}  b5 {[%clk 0:01:12]} 24. Ng4 {[%clk 0:01:35]}  Bg5 {[%clk 0:00:42]} 25. d5 {[%clk 0:01:27]}  c4 {[%clk 0:00:34]} 26. Ne5 {[%clk 0:01:09]}  Bf6 {[%clk 0:00:32]} 27. Nc6 {[%clk 0:01:09]}  Bxa1 {[%clk 0:00:29]} 28. Rxa1 {[%clk 0:01:10]}  Rd7 {[%clk 0:00:23]} 29. f6 {[%clk 0:01:07]}  Rxd5 {[%clk 0:00:19]} 30. Ne7+ {[%clk 0:01:01]} 1-0


[Site "https://www.chess.com"]

[Event "Titled Tuesday Blitz March 29 Early 2022"]
[White "Johnson, Ben"]
[Black "Derjabin, Ilja"]
[WhiteFideId "2010917"]
[BlackFideId "14104768"]
[WhiteElo "2207"]
[BlackElo "2341"]
[Result "1/2-1/2"]
[Round "01"]
[TimeControl "180+1"]
[Date "2022.03.30"]
[WhiteClock "0:00:13"]
[BlackClock "0:00:15"]

1. Nf3 {[%clk 0:03:00]}  c5 {[%clk 0:02:59]} 2. c4 {[%clk 0:02:59]}  g6 {[%clk 0:02:59]} 3. d4 {[%clk 0:02:56]}  Bg7 {[%clk 0:03:00]} 4. e4 {[%clk 0:02:48]}  cxd4 {[%clk 0:02:58]} 5. Nxd4 {[%clk 0:02:47]}  Nc6 {[%clk 0:02:58]} 6. Be3 {[%clk 0:02:43]}  Nf6 {[%clk 0:02:55]} 7. Nc3 {[%clk 0:02:43]}  O-O {[%clk 0:02:55]} 8. Be2 {[%clk 0:02:42]}  d6 {[%clk 0:02:55]} 9. O-O {[%clk 0:02:41]}  Bd7 {[%clk 0:02:55]} 10. h3 {[%clk 0:02:34]}  Rc8 {[%clk 0:02:54]} 11. Qd2 {[%clk 0:02:25]}  a6 {[%clk 0:02:46]} 12. Rac1 {[%clk 0:02:20]}  Re8 {[%clk 0:02:28]} 13. Rfd1 {[%clk 0:02:01]}  Qa5 {[%clk 0:02:15]} 14. b3 {[%clk 0:01:52]}  e5 {[%clk 0:02:09]} 15. Nxc6 {[%clk 0:01:41]}  Bxc6 {[%clk 0:02:01]} 16. f3 {[%clk 0:01:19]}  Red8 {[%clk 0:01:50]} 17. Nd5 {[%clk 0:01:13]}  Qxd2 {[%clk 0:01:47]} 18. Nxf6+ {[%clk 0:01:10]}  Bxf6 {[%clk 0:01:46]} 19. Rxd2 {[%clk 0:01:11]}  Be7 {[%clk 0:01:33]} 20. Bb6 {[%clk 0:01:09]}  Rd7 {[%clk 0:01:31]} 21. Rcd1 {[%clk 0:01:09]}  Bd8 {[%clk 0:01:27]} 22. Be3 {[%clk 0:01:01]}  Bc7 {[%clk 0:01:23]} 23. c5 {[%clk 0:00:53]}  Rcd8 {[%clk 0:00:52]} 24. Bg5 {[%clk 0:00:52]}  Ba5 {[%clk 0:00:47]} 25. Rd3 {[%clk 0:00:45]}  Bb5 {[%clk 0:00:37]} 26. Bxd8 {[%clk 0:00:44]}  Bxd3 {[%clk 0:00:34]} 27. Rxd3 {[%clk 0:00:40]}  Bxd8 {[%clk 0:00:33]} 28. Rxd6 {[%clk 0:00:37]}  Rxd6 {[%clk 0:00:33]} 29. cxd6 {[%clk 0:00:38]}  Kf8 {[%clk 0:00:33]} 30. Bc4 {[%clk 0:00:36]}  Bb6+ {[%clk 0:00:28]} 31. Kf1 {[%clk 0:00:35]}  Bc5 {[%clk 0:00:28]} 32. d7 {[%clk 0:00:32]}  Ke7 {[%clk 0:00:25]} 33. d8=Q+ {[%clk 0:00:23]}  Kxd8 {[%clk 0:00:25]} 34. Bxf7 {[%clk 0:00:24]}  Ke7 {[%clk 0:00:25]} 35. Bg8 {[%clk 0:00:22]}  h6 {[%clk 0:00:25]} 36. h4 {[%clk 0:00:19]}  g5 {[%clk 0:00:24]} 37. hxg5 {[%clk 0:00:19]}  hxg5 {[%clk 0:00:25]} 38. Ke2 {[%clk 0:00:19]}  b5 {[%clk 0:00:25]} 39. Kd3 {[%clk 0:00:16]}  Kd6 {[%clk 0:00:25]} 40. Bd5 {[%clk 0:00:15]}  Bd4 {[%clk 0:00:26]} 41. g3 {[%clk 0:00:15]}  Bb2 {[%clk 0:00:23]} 42. a4 {[%clk 0:00:13]}  Kc5 {[%clk 0:00:23]} 43. axb5 {[%clk 0:00:11]}  axb5 {[%clk 0:00:24]} 44. Be6 {[%clk 0:00:11]}  Bd4 {[%clk 0:00:23]} 45. Bd5 {[%clk 0:00:11]}  Kb4 {[%clk 0:00:22]} 46. Be6 {[%clk 0:00:10]}  Kc5 {[%clk 0:00:23]} 47. g4 {[%clk 0:00:09]}  Kb4 {[%clk 0:00:22]} 48. Bd5 {[%clk 0:00:10]}  Kc5 {[%clk 0:00:18]} 49. Be6 {[%clk 0:00:10]}  b4 {[%clk 0:00:18]} 50. Bd5 {[%clk 0:00:11]}  Bc3 {[%clk 0:00:18]} 51. Be6 {[%clk 0:00:12]}  Bd4 {[%clk 0:00:14]} 52. Bd5 {[%clk 0:00:12]}  Bc3 {[%clk 0:00:15]} 53. Be6 {[%clk 0:00:13]}  Bd4 {[%clk 0:00:15]} 1/2-1/2


[Site "https://www.chess.com"]

[Event "Titled Tuesday Blitz March 29 Early 2022"]
[White "Kaminski, Victor"]
[Black "Lewtak, Damian"]
[WhiteFideId "1131630"]
[BlackFideId "1141724"]
[WhiteElo "2181"]
[BlackElo "2362"]
[Result "1-0"]
[Round "01"]
[TimeControl "180+1"]
[Date "2022.03.30"]
[WhiteClock "0:00:56"]
[BlackClock "0:00:16"]

1. e4 {[%clk 0:03:00]}  c5 {[%clk 0:01:05]} 2. Nf3 {[%clk 0:02:49]}  d6 {[%clk 0:01:05]} 3. Bb5+ {[%clk 0:02:48]}  Bd7 {[%clk 0:01:06]} 4. a4 {[%clk 0:02:47]}  a6 {[%clk 0:01:06]} 5. Bxd7+ {[%clk 0:02:47]}  Qxd7 {[%clk 0:01:06]} 6. O-O {[%clk 0:02:47]}  e6 {[%clk 0:01:07]} 7. Nc3 {[%clk 0:02:46]}  Nf6 {[%clk 0:01:07]} 8. a5 {[%clk 0:02:47]}  Nc6 {[%clk 0:01:07]} 9. Na4 {[%clk 0:02:47]}  Rd8 {[%clk 0:01:07]} 10. Nb6 {[%clk 0:02:47]}  Qc7 {[%clk 0:01:07]} 11. d3 {[%clk 0:02:44]}  Be7 {[%clk 0:01:07]} 12. Nc4 {[%clk 0:02:42]}  O-O {[%clk 0:01:07]} 13. Bf4 {[%clk 0:02:42]}  Nh5 {[%clk 0:01:05]} 14. Bg3 {[%clk 0:02:37]}  Nxg3 {[%clk 0:01:05]} 15. hxg3 {[%clk 0:02:37]}  d5 {[%clk 0:01:05]} 16. exd5 {[%clk 0:02:36]}  exd5 {[%clk 0:01:06]} 17. Ne3 {[%clk 0:02:34]}  Bf6 {[%clk 0:01:05]} 18. c4 {[%clk 0:02:23]}  dxc4 {[%clk 0:01:01]} 19. Nxc4 {[%clk 0:02:23]}  Nb4 {[%clk 0:01:01]} 20. Ra3 {[%clk 0:02:21]}  Rd7 {[%clk 0:00:57]} 21. Qe2 {[%clk 0:02:19]}  g6 {[%clk 0:00:56]} 22. g4 {[%clk 0:02:18]}  Re7 {[%clk 0:00:54]} 23. Qd1 {[%clk 0:02:13]}  Rd8 {[%clk 0:00:55]} 24. g3 {[%clk 0:02:10]}  h6 {[%clk 0:00:55]} 25. Qd2 {[%clk 0:02:08]}  Kg7 {[%clk 0:00:55]} 26. Kg2 {[%clk 0:02:07]}  Qc6 {[%clk 0:00:54]} 27. Rh1 {[%clk 0:02:07]}  g5 {[%clk 0:00:53]} 28. Ne3 {[%clk 0:02:05]}  Re5 {[%clk 0:00:48]} 29. Rc3 {[%clk 0:01:50]}  Rde8 {[%clk 0:00:42]} 30. Rc4 {[%clk 0:01:46]}  Rxe3 {[%clk 0:00:36]} 31. fxe3 {[%clk 0:01:45]}  Nd5 {[%clk 0:00:36]} 32. e4 {[%clk 0:01:41]}  Nc7 {[%clk 0:00:34]} 33. b4 {[%clk 0:01:36]}  Ne6 {[%clk 0:00:32]} 34. bxc5 {[%clk 0:01:32]}  Qd7 {[%clk 0:00:31]} 35. e5 {[%clk 0:01:28]}  Bd8 {[%clk 0:00:30]} 36. d4 {[%clk 0:01:28]}  Bc7 {[%clk 0:00:29]} 37. Rcc1 {[%clk 0:01:17]}  Qd5 {[%clk 0:00:29]} 38. Qd3 {[%clk 0:01:13]}  Rd8 {[%clk 0:00:26]} 39. Rhd1 {[%clk 0:01:12]}  h5 {[%clk 0:00:24]} 40. Qf5 {[%clk 0:01:07]}  hxg4 {[%clk 0:00:23]} 41. Qxg4 {[%clk 0:01:07]}  Qa2+ {[%clk 0:00:21]} 42. Rd2 {[%clk 0:01:02]}  Qxa5 {[%clk 0:00:21]} 43. Rcd1 {[%clk 0:01:01]}  Kg6 {[%clk 0:00:19]} 44. d5 {[%clk 0:00:57]}  Qb4 {[%clk 0:00:16]} 45. Qxb4 {[%clk 0:00:56]} 1-0


[Site "https://www.chess.com"]

[Event "Titled Tuesday Blitz March 29 Early 2022"]
[White "Koridze, Lile"]
[Black "Avila Pavas, Santiago"]
[WhiteFideId "13612514"]
[BlackFideId "4437128"]
[WhiteElo "1999"]
[BlackElo "2242"]
[Result "0-1"]
[Round "01"]
[TimeControl "180+1"]
[Date "2022.03.30"]
[WhiteClock "0:00:20"]
[BlackClock "0:01:00"]

1. d4 {[%clk 0:03:00]}  Nf6 {[%clk 0:02:58]} 2. c4 {[%clk 0:03:00]}  c5 {[%clk 0:02:58]} 3. d5 {[%clk 0:03:00]}  b5 {[%clk 0:02:58]} 4. cxb5 {[%clk 0:03:01]}  a6 {[%clk 0:02:59]} 5. bxa6 {[%clk 0:03:01]}  g6 {[%clk 0:02:59]} 6. Nc3 {[%clk 0:03:01]}  Bg7 {[%clk 0:03:00]} 7. e4 {[%clk 0:03:01]}  O-O {[%clk 0:03:00]} 8. Nf3 {[%clk 0:03:01]}  Qa5 {[%clk 0:03:00]} 9. Bd2 {[%clk 0:03:01]}  Bxa6 {[%clk 0:03:00]} 10. Be2 {[%clk 0:03:00]}  Bxe2 {[%clk 0:02:53]} 11. Qxe2 {[%clk 0:02:59]}  Qa6 {[%clk 0:02:54]} 12. Qxa6 {[%clk 0:02:57]}  Nxa6 {[%clk 0:02:55]} 13. O-O {[%clk 0:02:57]}  Rfb8 {[%clk 0:02:52]} 14. Rab1 {[%clk 0:02:54]}  Nb4 {[%clk 0:02:51]} 15. a3 {[%clk 0:02:11]}  Nd3 {[%clk 0:02:42]} 16. Bc1 {[%clk 0:02:00]}  Ne8 {[%clk 0:02:26]} 17. Be3 {[%clk 0:01:52]}  Nd6 {[%clk 0:02:12]} 18. e5 {[%clk 0:01:15]}  Nc4 {[%clk 0:02:10]} 19. Nd2 {[%clk 0:01:04]}  Nxe3 {[%clk 0:02:03]} 20. fxe3 {[%clk 0:01:04]}  Bxe5 {[%clk 0:02:02]} 21. Nc4 {[%clk 0:01:03]}  d6 {[%clk 0:01:47]} 22. a4 {[%clk 0:00:42]}  Rb3 {[%clk 0:01:42]} 23. Ne4 {[%clk 0:00:38]}  Rxa4 {[%clk 0:01:39]} 24. Ncd2 {[%clk 0:00:38]}  Rxb2 {[%clk 0:01:38]} 25. Rxb2 {[%clk 0:00:38]}  Nxb2 {[%clk 0:01:38]} 26. Rb1 {[%clk 0:00:38]}  Kg7 {[%clk 0:01:35]} 27. Nf2 {[%clk 0:00:34]}  Nc4 {[%clk 0:01:33]} 28. Nf3 {[%clk 0:00:31]}  Bf6 {[%clk 0:01:30]} 29. e4 {[%clk 0:00:30]}  Ra2 {[%clk 0:01:28]} 30. Nd3 {[%clk 0:00:29]}  Ra3 {[%clk 0:01:18]} 31. Nf4 {[%clk 0:00:29]}  Ne5 {[%clk 0:01:14]} 32. Nxe5 {[%clk 0:00:27]}  Bxe5 {[%clk 0:01:14]} 33. Ne2 {[%clk 0:00:27]}  Re3 {[%clk 0:01:14]} 34. Kf2 {[%clk 0:00:26]}  Rxe4 {[%clk 0:01:14]} 35. g3 {[%clk 0:00:26]}  Ra4 {[%clk 0:01:12]} 36. Rb7 {[%clk 0:00:24]}  Ra2 {[%clk 0:01:12]} 37. Kf3 {[%clk 0:00:24]}  c4 {[%clk 0:01:12]} 38. Rc7 {[%clk 0:00:24]}  c3 {[%clk 0:01:11]} 39. Nxc3 {[%clk 0:00:24]}  Rc2 {[%clk 0:01:11]} 40. Nb5 {[%clk 0:00:23]}  Rxc7 {[%clk 0:01:10]} 41. Nxc7 {[%clk 0:00:23]}  Kf6 {[%clk 0:01:07]} 42. Ke4 {[%clk 0:00:21]}  Ba1 {[%clk 0:01:03]} 43. Nb5 {[%clk 0:00:21]}  Kg5 {[%clk 0:01:01]} 44. h3 {[%clk 0:00:20]}  Be5 {[%clk 0:01:00]} 45. g4 {[%clk 0:00:20]}  Kh4 {[%clk 0:01:00]} 0-1


[Site "https://www.chess.com"]

[Event "Titled Tuesday Blitz March 29 Early 2022"]
[White "Kucuksari, Kaan"]
[Black "Horak, Martin"]
[WhiteFideId "6380166"]
[BlackFideId "367095"]
[WhiteElo "2305"]
[BlackElo "1997"]
[Result "1-0"]
[Round "01"]
[TimeControl "180+1"]
[Date "2022.03.30"]
[WhiteClock "0:00:47"]
[BlackClock "0:00:13"]

1. d4 {[%clk 0:02:59]}  Nf6 {[%clk 0:02:59]} 2. c4 {[%clk 0:02:59]}  b6 {[%clk 0:03:00]} 3. f3 {[%clk 0:02:58]}  Nc6 {[%clk 0:02:59]} 4. e4 {[%clk 0:02:57]}  e5 {[%clk 0:02:59]} 5. d5 {[%clk 0:02:57]}  Nd4 {[%clk 0:02:57]} 6. Nc3 {[%clk 0:02:51]}  Bc5 {[%clk 0:02:48]} 7. Nge2 {[%clk 0:02:39]}  O-O {[%clk 0:02:36]} 8. Nxd4 {[%clk 0:02:34]}  Bxd4 {[%clk 0:02:37]} 9. Qe2 {[%clk 0:02:22]}  Nh5 {[%clk 0:02:33]} 10. g3 {[%clk 0:02:21]}  f5 {[%clk 0:02:18]} 11. Bg2 {[%clk 0:02:16]}  f4 {[%clk 0:01:54]} 12. g4 {[%clk 0:02:11]}  Qh4+ {[%clk 0:01:54]} 13. Kd1 {[%clk 0:02:11]}  Nf6 {[%clk 0:01:53]} 14. Bd2 {[%clk 0:02:09]}  Qf2 {[%clk 0:01:38]} 15. Qxf2 {[%clk 0:02:00]}  Bxf2 {[%clk 0:01:39]} 16. Ke2 {[%clk 0:01:59]}  Bc5 {[%clk 0:01:29]} 17. a3 {[%clk 0:01:50]}  a5 {[%clk 0:01:24]} 18. b4 {[%clk 0:01:50]}  axb4 {[%clk 0:01:21]} 19. axb4 {[%clk 0:01:50]}  Rxa1 {[%clk 0:01:21]} 20. Rxa1 {[%clk 0:01:51]}  Bxb4 {[%clk 0:01:21]} 21. Nb5 {[%clk 0:01:48]}  Bxd2 {[%clk 0:01:09]} 22. Kxd2 {[%clk 0:01:48]}  Ne8 {[%clk 0:01:06]} 23. Ra8 {[%clk 0:01:49]}  c6 {[%clk 0:00:56]} 24. Na7 {[%clk 0:01:22]}  Ba6 {[%clk 0:00:49]} 25. Nxc6 {[%clk 0:01:20]}  dxc6 {[%clk 0:00:33]} 26. Rxa6 {[%clk 0:01:19]}  Nd6 {[%clk 0:00:33]} 27. Bf1 {[%clk 0:01:12]}  cxd5 {[%clk 0:00:21]} 28. exd5 {[%clk 0:01:13]}  Rb8 {[%clk 0:00:19]} 29. c5 {[%clk 0:01:12]}  Nc8 {[%clk 0:00:16]} 30. c6 {[%clk 0:01:08]}  Kf7 {[%clk 0:00:15]} 31. Bd3 {[%clk 0:00:50]}  g6 {[%clk 0:00:14]} 32. Be4 {[%clk 0:00:46]}  Ke7 {[%clk 0:00:14]} 33. c7 {[%clk 0:00:46]}  Rb7 {[%clk 0:00:11]} 34. d6+ {[%clk 0:00:47]}  Nxd6 {[%clk 0:00:12]} 35. Bxb7 {[%clk 0:00:47]}  Nxb7 {[%clk 0:00:13]} 36. c8=Q {[%clk 0:00:47]} 1-0


[Site "https://www.chess.com"]

[Event "Titled Tuesday Blitz March 29 Early 2022"]
[White "Legenia, Artem"]
[Black "Tasev, Dejan"]
[WhiteFideId "14136945"]
[BlackFideId "936618"]
[WhiteElo "1936"]
[BlackElo "2253"]
[Result "0-1"]
[Round "01"]
[TimeControl "180+1"]
[Date "2022.03.30"]
[WhiteClock "0:01:29"]
[BlackClock "0:00:20"]

1. e4 {[%clk 0:02:58]}  e5 {[%clk 0:02:59]} 2. Nf3 {[%clk 0:02:46]}  Nf6 {[%clk 0:02:57]} 3. Nc3 {[%clk 0:02:45]}  Nc6 {[%clk 0:02:56]} 4. Bb5 {[%clk 0:02:45]}  Bb4 {[%clk 0:02:54]} 5. d3 {[%clk 0:02:45]}  d6 {[%clk 0:02:53]} 6. Bxc6+ {[%clk 0:02:45]}  bxc6 {[%clk 0:02:53]} 7. h3 {[%clk 0:02:45]}  h6 {[%clk 0:02:53]} 8. Be3 {[%clk 0:02:45]}  Ba5 {[%clk 0:02:46]} 9. Nd2 {[%clk 0:02:43]}  Bb6 {[%clk 0:02:46]} 10. Bxb6 {[%clk 0:02:40]}  cxb6 {[%clk 0:02:43]} 11. O-O {[%clk 0:02:41]}  g5 {[%clk 0:02:41]} 12. Nc4 {[%clk 0:02:39]}  Be6 {[%clk 0:02:40]} 13. Ne3 {[%clk 0:02:39]}  c5 {[%clk 0:02:28]} 14. Qf3 {[%clk 0:02:32]}  h5 {[%clk 0:02:15]} 15. Qg3 {[%clk 0:02:26]}  Rg8 {[%clk 0:02:05]} 16. Nf5 {[%clk 0:02:25]}  Qd7 {[%clk 0:01:55]} 17. Ne3 {[%clk 0:02:06]}  h4 {[%clk 0:01:39]} 18. Qf3 {[%clk 0:02:05]}  Rg6 {[%clk 0:01:35]} 19. Ncd5 {[%clk 0:02:02]}  Bxd5 {[%clk 0:01:27]} 20. exd5 {[%clk 0:01:56]}  g4 {[%clk 0:01:14]} 21. Nxg4 {[%clk 0:01:55]}  Nxg4 {[%clk 0:01:14]} 22. hxg4 {[%clk 0:01:55]}  Qxg4 {[%clk 0:00:57]} 23. Qxg4 {[%clk 0:01:54]}  Rxg4 {[%clk 0:00:56]} 24. Rfe1 {[%clk 0:01:53]}  f5 {[%clk 0:00:45]} 25. c4 {[%clk 0:01:45]}  Kf7 {[%clk 0:00:43]} 26. f3 {[%clk 0:01:39]}  Rg3 {[%clk 0:00:31]} 27. Kf2 {[%clk 0:01:39]}  Rag8 {[%clk 0:00:31]} 28. Rh1 {[%clk 0:01:39]}  Rxg2+ {[%clk 0:00:30]} 29. Ke3 {[%clk 0:01:38]}  f4+ {[%clk 0:00:27]} 30. Ke4 {[%clk 0:01:38]}  Kf6 {[%clk 0:00:24]} 31. Rae1 {[%clk 0:01:37]}  Rh8 {[%clk 0:00:21]} 32. a3 {[%clk 0:01:29]}  h3 {[%clk 0:00:20]} 0-1


[Site "https://www.chess.com"]